bitfinex/quotes_BTCUSD_20250101
["timestamp","ask_amount","ask_price","bid_price","bid_amount"]
[1735761816318,0.1276854,94834.0,94833.0,0.51985749]
[1735761817427,0.1276854,94834.0,94833.0,1.00668599]
[1735761817742,8.54e-05,94836.0,94833.0,1.00668599]
[1735761817743,8.54e-05,94836.0,94834.0,0.233894]
[1735761818007,8.54e-05,94836.0,94835.0,0.12698632]
[1735761818252,8.54e-05,94836.0,94835.0,0.39867239]
[1735761819295,8.54e-05,94836.0,94835.0,0.40767239]
[1735761819943,8.54e-05,94836.0,94835.0,1.0370898]
[1735761820695,8.54e-05,94836.0,94835.0,1.0420898]
[1735761820898,8.54e-05,94836.0,94835.0,0.75958557]
[1735761831647,8.54e-05,94836.0,94835.0,1.24641407]
[1735761832253,8.54e-05,94836.0,94835.0,0.75958557]
[1735761833432,0.0454,94847.0,94846.0,0.233868]
[1735761833638,0.0454,94847.0,94846.0,0.33785432]
[1735761833851,0.0454,94847.0,94846.0,0.35952559]
[1735761834674,0.0454,94847.0,94846.0,0.70643877]
[1735761834852,0.0454,94847.0,94846.0,0.71543877]
[1735761835576,0.0454,94847.0,94846.0,0.71843877]
[1735761838659,0.0454,94847.0,94846.0,0.72878734]
[1735761839282,0.0454,94847.0,94846.0,0.96373198]
[1735761842473,0.0454853,94847.0,94846.0,0.96373198]
[1735761845001,0.0454853,94847.0,94846.0,0.72878734]
[1735761845850,0.0454853,94847.0,94846.0,0.96373198]
[1735761847015,0.0454853,94847.0,94846.0,0.72878734]
[1735761848123,8.53e-05,94847.0,94846.0,0.72878734]
[1735761848533,0.0491,94858.0,94857.0,0.233843]
[1735761848766,0.0491,94858.0,94857.0,0.34446846]
[1735761849356,0.0491,94858.0,94857.0,0.35948674]
[1735761849762,0.0491,94858.0,94857.0,0.36053644]
[1735761850178,0.0491,94858.0,94857.0,0.36353644]
[1735761850745,0.04900729,94858.0,94857.0,0.36353644]
[1735761851705,0.12610729,94858.0,94857.0,0.36353644]
[1735761852269,0.0001706,94866.0,94865.0,0.210825]
[1735761852463,0.0001706,94866.0,94865.0,0.33781132]
[1735761852670,0.0001706,94866.0,94865.0,0.34444039]
[1735761853441,0.0001706,94866.0,94865.0,0.35943573]
[1735761853874,0.0001706,94866.0,94865.0,0.36243573]
[1735761855436,0.0001706,94866.0,94865.0,0.36343573]
[1735761855938,0.0001706,94866.0,94865.0,0.61343573]
[1735761857074,0.0001706,94866.0,94865.0,0.61043573]
[1735761857277,0.0001706,94866.0,94865.0,0.68873573]
[1735761857485,0.0001706,94866.0,94865.0,0.69773573]
[1735761857863,0.0001706,94866.0,94865.0,0.69673573]
[1735761858057,0.0001706,94866.0,94865.0,0.68873573]
[1735761858605,0.0001706,94866.0,94865.0,0.83759741]
[1735761859559,0.0001706,94866.0,94865.0,0.84359741]
[1735761860064,0.0001706,94866.0,94865.0,1.23705346]
[1735761860540,6e-07,94866.0,94865.0,2.03061406]
[1735761861146,6e-07,94866.0,94865.0,1.84279849]
[1735761861372,6e-07,94866.0,94865.0,1.82779849]
[1735761861810,6e-07,94866.0,94865.0,1.84279849]
[1735761862199,6e-07,94866.0,94865.0,1.83679849]
[1735761862409,6e-07,94866.0,94865.0,1.87909849]
[1735761862625,6e-07,94866.0,94865.0,1.88809849]
[1735761862978,6e-07,94866.0,94865.0,2.44772563]
[1735761863177,6e-07,94866.0,94865.0,2.72974852]
[1735761863378,6e-07,94866.0,94865.0,2.69718138]
[1735761863638,0.0001706,94886.0,94883.0,0.483785]
[1735761863856,0.0001706,94886.0,94883.0,1.65319183]
[1735761864054,0.0001706,94886.0,94883.0,1.65979363]
[1735761864662,0.0001706,94886.0,94883.0,1.8157174]
[1735761864999,0.0001706,94886.0,94883.0,1.96937715]
[1735761865172,0.0001706,94886.0,94883.0,1.98432713]
[1735761865979,0.0001706,94886.0,94883.0,2.33034952]
[1735761866866,0.0001706,94886.0,94883.0,2.18968977]
[1735761867849,0.0001706,94886.0,94883.0,2.37696237]
[1735761869795,0.0001706,94886.0,94883.0,2.18968977]
[1735761870228,6e-07,94884.0,94883.0,2.28968977]
[1735761870361,6e-07,94884.0,94883.0,2.41558977]
[1735761870551,6e-07,94884.0,94883.0,2.73686722]
[1735761871160,6e-07,94884.0,94883.0,2.59252738]
[1735761871832,6e-07,94884.0,94883.0,2.47562738]
[1735761872256,6e-07,94884.0,94883.0,2.82064665]
[1735761872459,0.0001706,94886.0,94885.0,0.273]
[1735761872665,0.0001706,94886.0,94885.0,1.15893596]
[1735761872866,0.0001706,94886.0,94885.0,0.9429382]
[1735761873063,0.0001706,94886.0,94885.0,0.63793856]
[1735761873262,0.0772706,94886.0,94885.0,0.63793856]
[1735761873706,0.0772706,94886.0,94885.0,0.78793856]
[1735761873842,0.0001706,94886.0,94885.0,0.91093856]
[1735761874044,0.0001706,94886.0,94885.0,0.91893856]
[1735761874448,0.0001706,94886.0,94885.0,0.81093856]
[1735761874829,0.0001706,94886.0,94885.0,0.82693856]
[1735761875017,0.0001706,94886.0,94885.0,0.91793856]
[1735761875146,0.0001706,94886.0,94885.0,0.92693856]
[1735761875353,0.0001706,94886.0,94885.0,0.91993856]
[1735761875589,0.0001706,94886.0,94885.0,0.92693856]
[1735761876129,0.0001706,94886.0,94885.0,0.91793856]
[1735761876534,0.0001706,94886.0,94885.0,0.92693856]
[1735761876729,0.0001706,94886.0,94885.0,0.82693856]
[1735761876966,0.0001706,94886.0,94885.0,0.91993856]
[1735761877167,0.0001706,94886.0,94885.0,0.82693856]
[1735761877382,0.0001706,94886.0,94885.0,0.92693856]
[1735761877806,0.0001706,94886.0,94885.0,0.91793856]
[1735761878370,0.0001706,94886.0,94885.0,0.91093856]
[1735761878583,0.0001706,94886.0,94885.0,0.91793856]
[1735761878780,0.210691,94926.0,94886.0,0.173]
[1735761878986,0.210691,94926.0,94892.0,0.023]
[1735761879155,0.210691,94926.0,94893.0,0.13397869]
[1735761879972,0.210691,94926.0,94893.0,0.13412726]
[1735761880609,0.310675,94933.0,94893.0,0.34489026]
[1735761880973,0.21065778,94921.0,94894.0,0.023]
[1735761881257,0.04214351,94920.0,94902.0,0.023]
[1735761881462,0.04214351,94920.0,94904.0,0.023]
[1735761881604,0.04214351,94920.0,94906.0,0.023]
[1735761881811,0.1221,94919.0,94906.0,0.12698632]
[1735761882050,0.045,94916.0,94908.0,0.023]
[1735761882255,0.04214351,94920.0,94908.0,0.023]
[1735761882256,0.0771,94915.0,94908.0,0.023]
[1735761882591,0.045,94912.0,94909.0,0.00697281]
[1735761882793,0.0771,94911.0,94910.0,0.023]
[1735761883150,0.0771,94911.0,94910.0,0.02997155]
[1735761883550,0.1263,94911.0,94910.0,0.02997155]
[1735761884745,0.160001,94911.0,94910.0,0.00797155]
[1735761885210,0.160001,94911.0,94910.0,0.001]
[1735761886031,0.160001,94911.0,94910.0,0.005]
[1735761886635,0.1263,94911.0,94910.0,0.005]
[1735761892324,0.1263,94911.0,94910.0,0.0051706]
[1735761899335,0.0492,94911.0,94910.0,0.0051706]
[1735761899534,0.0492,94911.0,94910.0,0.01244576]
[1735761900410,0.0492,94911.0,94910.0,0.00844576]
[1735761900555,0.0492,94911.0,94910.0,0.01344576]
[1735761900752,0.0492,94911.0,94910.0,0.00744576]
[1735761901155,0.0492,94911.0,94910.0,0.01344576]
[1735761901365,0.0492,94911.0,94910.0,0.00844576]
[1735761901752,8.53e-05,94921.0,94916.0,0.210712]
[1735761901921,8.53e-05,94921.0,94917.0,0.10398632]
[1735761902125,8.53e-05,94921.0,94918.0,0.210708]
[1735761902770,8.53e-05,94921.0,94919.0,0.00726384]
[1735761904263,8.53e-05,94921.0,94919.0,0.01526384]
[1735761904599,8.53e-05,94921.0,94919.0,0.00726384]
[1735761905007,8.53e-05,94921.0,94920.0,0.210703]
[1735761905364,8.53e-05,94921.0,94920.0,0.21796558]
[1735761905576,8.53e-05,94921.0,94920.0,0.00726258]
[1735761905930,8.53e-05,94921.0,94919.0,0.0081706]
[1735761906127,8.53e-05,94921.0,94920.0,0.00726258]
[1735761906755,8.53e-05,94921.0,94920.0,0.008]
[1735761906954,8.53e-05,94921.0,94920.0,0.00726258]
[1735761907159,8.53e-05,94921.0,94919.0,0.10415692]
[1735761907378,8.53e-05,94921.0,94920.0,0.01526085]
[1735761907805,8.53e-05,94921.0,94920.0,0.01726085]
[1735761908149,8.53e-05,94921.0,94920.0,0.00926085]
[1735761909068,0.14747106,94921.0,94920.0,0.00926085]
[1735761909299,0.1262765,94921.0,94920.0,0.00926085]
[1735761910123,0.1262765,94921.0,94920.0,0.01726085]
[1735761910294,0.1262765,94921.0,94920.0,0.01]
[1735761910497,0.1262765,94921.0,94920.0,0.01726085]
[1735761910699,0.1262765,94921.0,94920.0,0.008]
[1735761910906,0.1262765,94921.0,94920.0,0.00826085]
[1735761911141,0.1262765,94921.0,94920.0,0.005]
[1735761911313,0.1262765,94921.0,94920.0,0.001]
[1735761911515,0.1262765,94921.0,94919.0,0.0001706]
[1735761911754,0.1262765,94921.0,94920.0,0.002]
[1735761912298,0.1262765,94921.0,94919.0,0.0001706]
[1735761912560,0.15998138,94921.0,94920.0,0.001]
[1735761912766,0.15998138,94921.0,94920.0,0.009]
[1735761912936,0.15998138,94921.0,94920.0,0.001]
[1735761913353,0.2639677,94921.0,94920.0,0.001]
[1735761913550,0.2639677,94921.0,94920.0,0.005]
[1735761914293,0.2639677,94921.0,94920.0,0.004]
[1735761915270,0.23026282,94921.0,94920.0,0.004]
[1735761915688,0.286903,94920.0,94919.0,0.0001706]
[1735761916087,0.0762,94920.0,94919.0,0.0001706]
[1735761938246,0.0762,94920.0,94894.0,0.023]
[1735761938447,0.07669547,94920.0,94899.0,0.21075]
[1735761938647,0.01254426,94919.0,94895.0,0.32969495]
[1735761938797,0.01254426,94919.0,94900.0,0.00599814]
[1735761939007,0.01254426,94919.0,94895.0,0.32969495]
[1735761939208,0.01254426,94919.0,94896.0,0.00599981]
[1735761939410,0.01254426,94919.0,94896.0,0.10998613]
[1735761939628,0.0807,94917.0,94896.0,0.10998613]
[1735761939906,0.0807,94917.0,94896.0,0.00599981]
[1735761940077,0.0475,94916.0,94896.0,0.00599981]
[1735761940305,0.0807,94915.0,94896.0,0.00599981]
[1735761940511,0.0807,94914.0,94896.0,0.001]
[1735761940720,0.0807,94908.0,94884.0,0.210782]
[1735761940958,0.08422977,94900.0,94877.0,0.210798]
[1735761941182,0.0807,94899.0,94896.0,0.002]
[1735761941370,0.01649298,94898.0,94885.0,0.0060044]
[1735761941543,0.0807,94899.0,94878.0,0.31478132]
[1735761941747,0.0807,94899.0,94886.0,0.00600398]
[1735761941955,0.0807,94899.0,94880.0,0.210792]
[1735761942153,0.0807,94899.0,94847.0,0.042218]
[1735761942154,0.0807,94889.0,94870.0,0.210814]
[1735761942357,0.0807,94889.0,94881.0,0.00600607]
[1735761942517,0.00807,94888.0,94879.0,0.01495309]
[1735761942725,0.00807,94888.0,94882.0,0.00600565]
[1735761942932,0.00807,94888.0,94870.0,0.31479832]
[1735761943480,0.0807,94889.0,94872.0,0.21081]
[1735761943897,0.0809,94896.0,94882.0,0.005]
[1735761944109,0.0809,94896.0,94882.0,0.001]
[1735761944593,0.0809,94896.0,94883.0,0.00600524]
[1735761944791,0.01284,94895.0,94883.0,0.00600524]
[1735761945008,0.01284,94895.0,94877.0,0.210799]
[1735761945143,0.01284,94895.0,94884.0,0.00600482]
[1735761945357,0.01284,94895.0,94877.0,0.210799]
[1735761945560,0.01284,94895.0,94878.0,0.00600732]
[1735761945759,0.014124,94894.0,94878.0,0.00600732]
[1735761946181,0.014124,94894.0,94873.0,0.31479332]
[1735761946389,0.014124,94894.0,94874.0,0.006009]
[1735761946734,0.014124,94894.0,94875.0,0.31478932]
[1735761947202,0.014124,94894.0,94876.0,0.02094318]
[1735761947356,0.0142524,94893.0,94878.0,0.001]
[1735761947560,0.0142524,94893.0,94876.0,0.02094318]
[1735761947891,0.0142524,94893.0,94877.0,0.00600774]
[1735761949246,0.0142524,94893.0,94877.0,0.00700774]
[1735761953513,0.0142524,94893.0,94877.0,0.00717854]
[1735761953725,0.01426524,94892.0,94877.0,0.00717854]
[1735761954784,0.0809,94891.0,94877.0,0.00717854]
[1735761954988,0.0457,94890.0,94877.0,0.00717854]
[1735761955125,0.0457,94890.0,94877.0,0.0001708]
[1735761955340,0.0457,94890.0,94878.0,0.00600732]
[1735761955538,0.0155203,94889.0,94878.0,0.00600732]
[1735761955746,0.0155203,94889.0,94877.0,0.0021708]
[1735761955948,0.0155203,94889.0,94877.0,0.0041708]
[1735761956182,0.0155203,94889.0,94877.0,0.0001708]
[1735761956425,0.0809,94888.0,94877.0,0.0001708]
[1735761956637,0.03814019,94887.0,94878.0,0.003]
[1735761956839,0.0809,94888.0,94877.0,0.0001708]
[1735761957033,0.0809,94888.0,94877.0,0.0031708]
[1735761957239,0.0809,94888.0,94877.0,0.0041708]
[1735761957680,0.0809,94888.0,94877.0,0.0031708]
[1735761957904,0.0809,94888.0,94877.0,0.0041708]
[1735761958254,0.09498524,94888.0,94877.0,0.0011708]
[1735761958797,0.09498524,94888.0,94877.0,0.0051708]
[1735761959866,0.09498524,94888.0,94878.0,0.00600732]
[1735761960281,0.09498524,94888.0,94877.0,0.0051708]
[1735761960439,0.0457,94890.0,94877.0,0.0051708]
[1735761960642,0.0457,94890.0,94878.0,0.00600773]
[1735761961044,0.0457,94890.0,94878.0,0.00700773]
[1735761961256,0.40071355,94925.0,94881.0,0.023]
[1735761961257,0.1219,94901.0,94881.0,0.023]
[1735761961524,0.1219,94901.0,94878.0,0.00700773]
[1735761961525,0.01219854,94895.0,94891.0,0.210767]
[1735761961656,0.0464,94901.0,94892.0,0.10398632]
[1735761961873,0.0464,94901.0,94892.0,0.10998818]
[1735761966684,0.0464,94901.0,94892.0,0.00600186]
[1735761967066,0.0464,94901.0,94886.0,0.01051799]
[1735761967317,0.0755,94895.0,94893.0,0.00600146]
[1735761967559,0.01219854,94894.0,94887.0,0.01497469]
[1735761967950,0.01219854,94894.0,94888.0,0.00600354]
[1735761968377,0.01219854,94894.0,94878.0,0.09405791]
[1735761968564,0.01219854,94894.0,94879.0,0.10398632]
[1735761968709,0.01219854,94894.0,94879.0,0.10999362]
[1735761968907,0.00877839,94893.0,94879.0,0.10999362]
[1735761969111,0.00877839,94893.0,94880.0,0.01497829]
[1735761969495,0.00877839,94893.0,94881.0,0.02098476]
[1735761970132,0.00877839,94893.0,94882.0,0.01497829]
[1735761970607,0.00877839,94893.0,94883.0,0.02098392]
[1735761970847,0.00965623,94892.0,94883.0,0.02098392]
[1735761971346,0.00965623,94892.0,94884.0,0.01497829]
[1735761971574,0.0755,94895.0,94885.0,0.0060048]
[1735761972028,0.0755,94895.0,94881.0,0.001]
[1735761972226,0.0755,94895.0,94882.0,0.00600605]
[1735761972428,0.0755,94895.0,94884.0,0.002]
[1735761972635,0.08769854,94895.0,94885.0,0.0060048]
[1735761973777,0.08769854,94895.0,94879.0,0.10398632]
[1735761974019,0.08769854,94895.0,94886.0,0.00600438]
[1735761974218,0.08769854,94895.0,94880.0,0.01498375]
[1735761974551,0.08769854,94895.0,94881.0,0.00600647]
[1735761974747,0.01341839,94894.0,94881.0,0.02099022]
[1735761975530,0.01341839,94894.0,94882.0,0.01498375]
[1735761976031,0.01341839,94894.0,94883.0,0.02098938]
[1735761976378,0.01341839,94894.0,94884.0,0.01498375]
[1735761976556,0.0755,94895.0,94884.0,0.01498375]
[1735761976762,0.0755,94895.0,94885.0,0.0060048]
[1735761977388,0.0755,94895.0,94882.0,0.211786]
[1735761977625,0.0755,94895.0,94885.0,0.210779]
[1735761977828,0.0755,94895.0,94886.0,0.00600438]
[1735761978935,8.54e-05,94894.0,94886.0,0.00600438]
[1735761979322,8.54e-05,94894.0,94884.0,0.023]
[1735761979520,8.54e-05,94894.0,94888.0,0.210773]
[1735761979795,8.54e-05,94894.0,94886.0,0.10398632]
[1735761979982,8.54e-05,94894.0,94889.0,0.00600313]
[1735761980197,8.54e-05,94894.0,94886.0,0.31476332]
[1735761980372,8.54e-05,94894.0,94890.0,0.00600271]
[1735761980573,8.54e-05,94894.0,94886.0,0.31576332]
[1735761980778,8.54e-05,94894.0,94891.0,0.00600229]
[1735761980977,8.54e-05,94894.0,94886.0,0.31576332]
[1735761981233,8.54e-05,94894.0,94892.0,0.00600187]
[1735761981471,8.54e-05,94894.0,94886.0,0.31476332]
[1735761981704,8.54e-05,94894.0,94893.0,0.00600146]
[1735761981934,8.54e-05,94894.0,94888.0,0.001]
[1735761982159,0.00756708,94893.0,94888.0,0.001]
[1735761982399,0.00756708,94893.0,94889.0,0.00600313]
[1735761982828,0.00756708,94893.0,94889.0,0.02098854]
[1735761983064,0.00756708,94893.0,94889.0,0.01498541]
[1735761983338,0.00756708,94893.0,94890.0,0.00600271]
[1735761984070,0.00756708,94893.0,94888.0,0.001]
[1735761984297,8.54e-05,94894.0,94891.0,0.00600229]
[1735761984531,8.54e-05,94894.0,94888.0,0.001]
[1735761984777,8.54e-05,94894.0,94892.0,0.00600187]
[1735761985027,8.54e-05,94894.0,94889.0,0.001]
[1735761985299,8.54e-05,94894.0,94893.0,0.00600146]
[1735761985561,8.54e-05,94894.0,94891.0,0.001]
[1735761986026,8.54e-05,94894.0,94892.0,0.00600187]
[1735761986535,8.54e-05,94894.0,94886.0,0.10398632]
[1735761986774,8.54e-05,94894.0,94893.0,0.00600146]
[1735761987010,8.54e-05,94894.0,94891.0,0.001]
[1735761987490,8.54e-05,94894.0,94892.0,0.00600187]
[1735761988225,8.54e-05,94894.0,94892.0,0.00700187]
[1735761988484,8.54e-05,94894.0,94892.0,0.001]
[1735761988710,8.54e-05,94894.0,94893.0,0.00600146]
[1735761989111,8.54e-05,94894.0,94892.0,0.001]
[1735761989625,8.54e-05,94894.0,94893.0,0.00600146]
[1735761989857,8.54e-05,94894.0,94892.0,0.001]
[1735761990099,8.54e-05,94894.0,94893.0,0.00600146]
[1735761990596,8.54e-05,94894.0,94892.0,0.001]
[1735761990998,8.54e-05,94894.0,94893.0,0.00600146]
[1735761991191,8.54e-05,94894.0,94893.0,0.00700146]
[1735761991483,8.54e-05,94894.0,94893.0,0.001]
[1735761991687,8.54e-05,94894.0,94886.0,0.10398632]
[1735761991900,8.54e-05,94894.0,94892.0,0.001]
[1735761992109,8.54e-05,94894.0,94887.0,0.00600396]
[1735761992344,8.54e-05,94894.0,94893.0,0.00700146]
[1735761992595,8.54e-05,94894.0,94893.0,0.001]
[1735761994142,8.54e-05,94894.0,94886.0,0.10398632]
[1735761994646,8.54e-05,94894.0,94893.0,0.001]
[1735761995298,8.54e-05,94894.0,94887.0,0.00784244]
[1735761995676,8.54e-05,94894.0,94888.0,0.02100876]
[1735761996107,8.54e-05,94894.0,94893.0,0.001]
[1735761996620,8.54e-05,94894.0,94893.0,0.00700146]
[1735761996849,8.54e-05,94894.0,94893.0,0.001]
[1735761996999,8.54e-05,94894.0,94893.0,0.00700146]
[1735761997159,8.54e-05,94894.0,94893.0,0.001]
[1735761997370,8.54e-05,94894.0,94886.0,0.10398632]
[1735761997568,0.03336708,94894.0,94886.0,0.10398632]
[1735761997774,0.03336708,94894.0,94887.0,0.00700396]
[1735761998212,0.03336708,94894.0,94893.0,0.001]
[1735761998664,0.03336708,94894.0,94893.0,0.00700146]
[1735761998865,0.03336708,94894.0,94893.0,0.001]
[1735761999270,0.03336708,94894.0,94886.0,0.19787343]
[1735761999466,0.01089525,94893.0,94887.0,0.00600396]
[1735762000018,0.01089525,94893.0,94888.0,0.01500511]
[1735762000221,0.01089525,94893.0,94889.0,0.00600313]
[1735762000874,0.01089525,94893.0,94886.0,0.10498632]
[1735762001096,0.01089525,94893.0,94890.0,0.00600271]
[1735762001271,0.03306017,94892.0,94887.0,0.01500492]
[1735762001487,0.03306017,94892.0,94889.0,0.001]
[1735762001907,0.03306017,94892.0,94890.0,0.00600271]
[1735762002304,0.24382717,94892.0,94890.0,0.00600271]
[1735762002480,0.0483,94891.0,94890.0,0.00600271]
[1735762002682,0.21077,94890.0,94889.0,0.002]
[1735762002887,0.10724542,94891.0,94889.0,0.002]
[1735762003343,0.29017,94890.0,94889.0,0.002]
[1735762003873,0.29017,94890.0,94884.0,0.0001708]
[1735762004121,0.06083532,94889.0,94884.0,0.0001708]
[1735762005002,0.0794,94890.0,94884.0,0.0001708]
[1735762005193,0.0483,94891.0,94889.0,0.003]
[1735762005306,0.0483,94891.0,94884.0,0.0001708]
[1735762005506,0.0483,94891.0,94885.0,0.01499492]
[1735762005711,0.03392258,94890.0,94885.0,0.01499492]
[1735762005962,0.03392258,94890.0,94884.0,0.0021708]
[1735762006366,0.210772,94889.0,94884.0,0.0021708]
[1735762006534,0.0483,94891.0,94884.0,0.0021708]
[1735762007083,0.0483,94891.0,94884.0,0.09405791]
[1735762007239,0.0483,94891.0,94884.0,0.09605791]
[1735762007443,0.0483,94891.0,94884.0,0.09405791]
[1735762007825,0.05499898,94890.0,94885.0,0.001]
[1735762008244,0.05499898,94890.0,94884.0,0.0031708]
[1735762008897,8.54e-05,94894.0,94885.0,0.10398632]
[1735762009095,8.54e-05,94894.0,94886.0,0.233779]
[1735762009281,8.54e-05,94894.0,94890.0,0.1014]
[1735762009487,8.54e-05,94894.0,94893.0,0.233763]
[1735762009692,8.54e-05,94894.0,94893.0,0.33774932]
[1735762009900,8.54e-05,94894.0,94893.0,0.34375111]
[1735762010112,8.54e-05,94894.0,94893.0,0.35873334]
[1735762010318,8.54e-05,94894.0,94893.0,0.36656334]
[1735762010920,8.54e-05,94894.0,94893.0,0.29662679]
[1735762011551,8.54e-05,94894.0,94893.0,0.30562679]
[1735762012015,8.54e-05,94894.0,94893.0,0.30962679]
[1735762012219,8.54e-05,94894.0,94893.0,0.16880034]
[1735762013305,8.54e-05,94894.0,94893.0,0.26278375]
[1735762013479,8.54e-05,94894.0,94893.0,0.25495375]
[1735762013885,8.54e-05,94894.0,94893.0,0.23195375]
[1735762014086,0.0466854,94894.0,94893.0,0.12796743]
[1735762014350,0.0466854,94894.0,94893.0,0.03398402]
[1735762014750,8.54e-05,94894.0,94893.0,0.03398402]
[1735762014955,8.54e-05,94894.0,94893.0,0.01900179]
[1735762015494,8.54e-05,94894.0,94893.0,0.01500179]
[1735762016346,8.54e-05,94894.0,94893.0,0.00600179]
[1735762016552,8.54e-05,94894.0,94893.0,0.01300179]
[1735762016725,8.54e-05,94894.0,94889.0,0.09398881]
[1735762016946,8.54e-05,94894.0,94893.0,0.00800179]
[1735762017167,8.54e-05,94894.0,94893.0,0.009]
[1735762017349,8.54e-05,94894.0,94893.0,0.01300179]
[1735762017947,8.54e-05,94894.0,94893.0,0.01500179]
[1735762024068,8.54e-05,94894.0,94893.0,0.00800179]
[1735762024251,8.54e-05,94894.0,94893.0,0.01400179]
[1735762024676,8.54e-05,94894.0,94893.0,0.01600179]
[1735762030384,8.54e-05,94894.0,94893.0,0.18770179]
[1735762038295,0.0450988,94901.0,94893.0,0.18770179]
[1735762039228,0.0450988,94901.0,94893.0,0.18570179]
[1735762039584,0.0450988,94901.0,94893.0,0.17870179]
[1735762039979,0.0450988,94901.0,94893.0,0.18270179]
[1735762041618,0.0450988,94901.0,94894.0,0.01499743]
[1735762041963,0.210748,94900.0,94895.0,0.00600095]
[1735762042201,0.0809,94899.0,94895.0,0.00600095]
[1735762042401,0.210752,94898.0,94893.0,0.1767]
[1735762042560,0.210752,94898.0,94896.0,0.00600054]
[1735762042760,0.210752,94898.0,94893.0,0.1767]
[1735762042959,0.210752,94898.0,94897.0,0.00600012]
[1735762043219,0.26550208,94898.0,94895.0,0.004]
[1735762043507,0.26550208,94898.0,94897.0,0.00600012]
[1735762043719,0.26550208,94898.0,94896.0,0.00600054]
[1735762043907,0.26550208,94898.0,94897.0,0.00600012]
[1735762044115,0.05475008,94898.0,94897.0,0.00600012]
[1735762044519,0.05475008,94898.0,94895.0,0.005]
[1735762044722,0.0809,94899.0,94897.0,0.00600012]
[1735762045080,0.0809,94899.0,94897.0,0.001]
[1735762045279,0.0809,94899.0,94898.0,0.00599964]
[1735762046025,0.0809,94899.0,94897.0,0.001]
[1735762046204,0.0809,94899.0,94898.0,0.00599965]
[1735762046849,0.13564898,94899.0,94898.0,0.00599965]
[1735762047615,0.13564898,94899.0,94898.0,0.006]
[1735762047811,0.13564898,94899.0,94898.0,0.01199965]
[1735762049031,0.0809,94899.0,94898.0,0.01199965]
[1735762049978,0.0809854,94899.0,94898.0,0.01199965]
[1735762052176,0.0809854,94899.0,94898.0,0.01099965]
[1735762052609,0.0809854,94899.0,94898.0,0.00599965]
[1735762052819,0.0809854,94899.0,94893.0,0.1717]
[1735762052972,0.0809854,94899.0,94898.0,0.00899965]
[1735762053172,0.0809854,94899.0,94893.0,0.1717]
[1735762053398,0.0809854,94899.0,94898.0,0.00599965]
[1735762053602,0.0809854,94899.0,94898.0,0.003]
[1735762053856,0.0809854,94899.0,94898.0,0.00899965]
[1735762054235,0.15681712,94899.0,94898.0,0.00899965]
[1735762054638,0.20181712,94899.0,94898.0,0.00899965]
[1735762055010,0.31962304,94899.0,94898.0,0.00899965]
[1735762055216,0.31962304,94899.0,94898.0,0.00599965]
[1735762055422,0.1232,94897.0,94893.0,0.1717]
[1735762055624,0.10398632,94896.0,94893.0,0.1717]
[1735762055831,0.0782,94894.0,94893.0,0.1717]
[1735762056804,0.288961,94894.0,94893.0,0.1717]
[1735762060349,0.333961,94894.0,94893.0,0.1717]
[1735762062360,0.333961,94894.0,94893.0,0.1718706]
[1735762062530,0.42991517,94894.0,94893.0,0.1718706]
[1735762064132,0.333961,94894.0,94893.0,0.1718706]
[1735762066552,0.43794732,94894.0,94893.0,0.1718706]
[1735762067091,0.68794732,94894.0,94893.0,0.1718706]
[1735762067290,0.80262997,94894.0,94893.0,0.0664906]
[1735762067724,0.80262997,94894.0,94893.0,0.0454146]
[1735762067976,0.90661629,94894.0,94893.0,0.0032626]
[1735762068192,0.90661629,94894.0,94884.0,0.0001708]
[1735762068193,0.439681,94885.0,94884.0,0.0001708]
[1735762068390,0.54366732,94885.0,94884.0,0.0001708]
[1735762070344,0.54666732,94885.0,94884.0,0.0001708]
[1735762079735,0.79666732,94885.0,94884.0,8e-07]
[1735762079942,0.89983478,94885.0,94884.0,8e-07]
[1735762082145,0.79666732,94885.0,94884.0,8e-07]
[1735762085567,0.81410037,94885.0,94884.0,8e-07]
[1735762086237,0.81418577,94885.0,94884.0,8e-07]
[1735762086443,0.477,94882.0,94881.0,6e-07]
[1735762086649,0.59841937,94882.0,94881.0,6e-07]
[1735762086858,0.70240569,94882.0,94881.0,6e-07]
[1735762087692,0.35,94878.0,94877.0,2e-07]
[1735762087887,0.58098632,94878.0,94877.0,2e-07]
[1735762088062,0.59841937,94878.0,94877.0,2e-07]
[1735762088266,0.70240569,94878.0,94877.0,2e-07]
[1735762088727,0.91320269,94878.0,94877.0,2e-07]
[1735762089081,0.81321637,94878.0,94877.0,0.0010002]
[1735762089296,0.79578332,94878.0,94877.0,0.0010002]
[1735762090199,0.79878332,94878.0,94877.0,0.0010002]
[1735762090803,0.7987054,94878.0,94877.0,0.0010002]
[1735762103151,0.7987054,94878.0,94877.0,2e-07]
[1735762103353,0.68543408,94871.0,94870.0,9e-07]
[1735762103555,0.7894204,94871.0,94870.0,9e-07]
[1735762104711,0.7984204,94871.0,94870.0,0.0010009]
[1735762105277,0.210858,94851.0,94840.0,0.07453098]
[1735762105478,0.210861,94849.0,94840.0,0.07458374]
[1735762106181,0.0210858,94850.0,94840.0,0.07458374]
[1735762106505,0.210861,94849.0,94840.0,0.07458374]
[1735762106934,0.0210858,94850.0,94840.0,0.07458374]
[1735762107582,0.0210858,94850.0,94840.0,0.07558374]
[1735762107785,0.04427858,94849.0,94840.0,0.07458374]
[1735762109117,0.04427858,94849.0,94840.0,0.07558374]
[1735762109337,0.04427858,94849.0,94840.0,0.07575454]
[1735762110257,0.210851,94854.0,94840.0,0.07575454]
[1735762110455,0.421702,94854.0,94840.0,0.07575454]
[1735762110613,0.210851,94854.0,94840.0,0.07575454]
[1735762111018,0.210858,94851.0,94840.0,0.07575454]
[1735762111240,0.210831,94863.0,94842.0,0.0803]
[1735762111446,0.04097152,94863.0,94852.0,0.0467]
[1735762111618,0.09489785,94868.0,94854.0,0.0803]
[1735762111823,0.09489785,94868.0,94859.0,0.08423584]
[1735762112026,0.09489785,94868.0,94860.0,0.0803]
[1735762112231,0.09489785,94868.0,94861.0,0.291134]
[1735762112516,0.09489785,94868.0,94866.0,0.0803]
[1735762112717,0.09489785,94868.0,94867.0,0.210821]
[1735762112932,8.54e-05,94878.0,94868.0,0.0803]
[1735762113104,8.54e-05,94878.0,94870.0,0.127]
[1735762113369,8.54e-05,94878.0,94871.0,0.0803]
[1735762113581,8.54e-05,94878.0,94871.0,0.0874416]
[1735762113782,8.54e-05,94878.0,94873.0,0.0803]
[1735762114297,8.54e-05,94878.0,94874.0,0.00714004]
[1735762114632,0.0010854,94878.0,94874.0,0.00714004]
[1735762115044,0.0020854,94878.0,94874.0,0.00714004]
[1735762115451,8.54e-05,94878.0,94874.0,0.00714004]
[1735762116812,8.54e-05,94878.0,94874.0,0.01414004]
[1735762116813,0.0010854,94878.0,94874.0,0.01414004]